fUST/lending_fUST_20250418
["ID","MTS","AMOUNT","RATE_DAILY","PERIOD"]
[358353079,1744978234090,-16177.35057766,0.00021499,2]
[358353100,1744978238790,-189.955412,0.00021499,2]
[358353102,1744978238800,-272.88147389,0.00021499,2]
[358353113,1744978238894,-189.955412,0.00021499,2]
[358353115,1744978238904,-24898.69695565,0.00021499,2]
[358353117,1744978238916,-56195.4397829,0.00021499,2]
[358353333,1744979327725,1640.09838356,0.00015,2]
[358353354,1744979431803,-300.0,0.00019999,2]
[358353355,1744979431814,-300.0,0.00019999,2]
[358353356,1744979431823,-3887.90573169,0.0002,3]
[358353368,1744979438014,-450.31805187,0.00019999,2]
[358353369,1744979438109,-49.68194813,0.00019999,2]
[358353370,1744979438119,-500.0,0.00019999,2]
[358353371,1744979438130,-500.0,0.00019999,2]
[358353372,1744979438139,-499.997,0.00019999,2]
[358353373,1744979438149,-500.0,0.00019999,2]
[358353374,1744979438158,-500.0,0.00019999,2]
[358353375,1744979438168,-500.0,0.00019999,2]
[358353376,1744979438177,-500.0,0.00019999,2]
[358353377,1744979438187,-234.95535387,0.00019999,2]
[358353815,1744979811882,328.15624231,0.00018,2]
[358353816,1744980369875,172.0,0.00018,2]
[358353858,1744980631936,-250.0,0.00018895,2]
[358353859,1744980631946,-230.2037466,0.0001892,2]
[358353860,1744980631956,-2458.36844242,0.00019797,2]
[358353861,1744980631965,-500.0,0.00019892,2]
[358353862,1744980631975,-500.0,0.00019892,2]
[358353864,1744980631985,-500.0,0.00019892,2]
[358353865,1744980631995,-500.0,0.00019892,2]
[358353866,1744980632005,-500.0,0.00019892,2]
[358353867,1744980632014,-564.36925455,0.00019892,2]
[358353868,1744980632024,-500.0,0.00019892,2]
[358353869,1744980632033,-300.0,0.00019892,2]
[358353870,1744980632043,-23907.95890121,0.00019893,2]
[358353871,1744980632052,-5622.65058516,0.00019893,3]
[358353872,1744980632062,-300.0,0.00019893,2]
[358353873,1744980632071,-988.16983958,0.00019899,2]
[358353901,1744980638219,-255.83204123,0.00019892,2]
[358353902,1744980638277,-353.4884578,0.00019892,2]
[358353903,1744980638288,-500.0,0.00019892,2]
[358353904,1744980638298,-500.0,0.00019892,2]
[358353905,1744980638307,-500.0,0.00019892,2]
[358353906,1744980638317,-432.80827515,0.00019892,2]
[358353907,1744980638329,-67.19172485,0.00019892,2]
[358353908,1744980638339,-500.0,0.00019892,2]
[358353909,1744980638348,-500.0,0.00019892,2]
[358353910,1744980638357,-500.0,0.00019892,2]
[358353911,1744980638368,-500.0,0.00019892,2]
[358353912,1744980638377,-500.0,0.00019892,2]
[358353913,1744980638386,-500.0,0.00019892,2]
[358353914,1744980638396,-1502.37546645,0.00019899,2]
[358353915,1744980638407,-2626.88640333,0.00019899,2]
[358353921,1744980640347,-700.2151947,0.00019899,2]
[358353922,1744980640403,-601.82408982,0.00019899,2]
[358353923,1744980640415,-1454.8411832,0.00019899,2]
[358353948,1744980643046,-2125.62786318,0.00019899,2]
[358353951,1744980643057,-2822.19218215,0.000199,2]
[358353953,1744980643067,-500.0,0.0001995,2]
[358353955,1744980643077,-99.47470534,0.0001995,2]
[358353957,1744980643089,-196.85398266,0.0001995,2]
[358353959,1744980643100,-500.0,0.0001995,2]
[358353961,1744980643109,-150.47481625,0.0001995,2]
[358353963,1744980643119,-500.0,0.0001995,2]
[358353965,1744980643128,-500.0,0.0001995,2]
[358353967,1744980643138,-300.0,0.0001995,2]
[358353969,1744980643150,-500.0,0.0001995,2]
[358353972,1744980643161,-738.08966171,0.0001998,2]
[358353974,1744980643171,-202.47934221,0.00019999,2]
[358353976,1744980643181,-161.23811363,0.00019999,2]
[358353978,1744980643191,-35170.98845649,0.0002,3]
[358353980,1744980643200,-839.29847495,0.0002,3]
[358353982,1744980643210,-160.0,0.0002,3]
[358353985,1744980643220,-12559.7366029,0.0002,3]
[358353987,1744980643230,-160.0,0.0002,3]
[358353990,1744980643239,-160.0,0.0002,3]
[358353993,1744980643248,-250.0,0.00020749,2]
[358353995,1744980643257,-165.38,0.000209,2]
[358353997,1744980643267,-2822.19218212,0.000209,3]
[358353999,1744980643277,-583.2245,0.00020928,15]
[358354001,1744980643288,-402.0,0.00020987,2]
[358354003,1744980643298,-1000.0,0.00021046,2]
[358354005,1744980643307,-151.0,0.00021046,2]
[358354007,1744980643318,-151.0,0.00021046,2]
[358354009,1744980643328,-179.492467,0.00021046,2]
[358354011,1744980643337,-151.0,0.00021046,2]
[358354013,1744980643347,-151.254667,0.00021046,2]
[358354015,1744980643356,-156.612074,0.00021046,2]
[358354017,1744980643367,-151.0,0.00021046,2]
[358354019,1744980643376,-151.0,0.00021046,2]
[358354021,1744980643386,-151.0,0.00021046,2]
[358354023,1744980643396,-151.0,0.00021046,2]
[358354025,1744980643406,-153.796046,0.00021046,2]
[358354027,1744980643415,-151.0,0.00021046,2]
[358354029,1744980643425,-151.0,0.00021046,2]
[358354031,1744980643435,-207.978834,0.00021046,2]
[358354034,1744980643444,-151.0,0.00021046,2]
[358354035,1744980643454,-207.978834,0.00021046,2]
[358354037,1744980643464,-151.0,0.00021046,2]
[358354039,1744980643474,-167.444779,0.00021046,2]
[358354041,1744980643483,-151.0,0.00021046,2]
[358354043,1744980643492,-151.0,0.00021046,2]
[358354045,1744980643502,-100480.2781665,0.00021372,2]
[358354605,1744981832133,-250.0,0.00019802,2]
[358354606,1744981832143,-201.79522765,0.00019888,2]
[358354607,1744981832155,-562.67867735,0.00019888,2]
[358354608,1744981832165,-170.2011011,0.00019892,2]
[358354609,1744981832174,-227.17605309,0.00019964,2]
[358354610,1744981832188,-6036.89871921,0.00019964,2]
[358354611,1744981832197,-100000.0,0.0001999,2]
[358354612,1744981832206,-211.1174264,0.00020318,2]
[358354613,1744981832216,-300.0,0.00020798,2]
[358354614,1744981832225,-300.0,0.00020798,2]
[358354615,1744981832234,-2179.62459869,0.00020799,2]
[358354616,1744981832245,-171.06423259,0.00020799,2]
[358354617,1744981832254,-180.63757158,0.00020799,2]
[358354618,1744981832264,-180.63757156,0.00020845,2]
[358354619,1744981832273,-50000.0,0.00020873,2]
[358354620,1744981832282,-500.0,0.00020873,2]
[358354621,1744981832291,-501.1063021,0.00020873,2]
[358354622,1744981832300,-500.0,0.00020873,2]
[358354623,1744981832309,-500.0,0.00020873,2]
[358354624,1744981832319,-500.3148288,0.00020873,2]
[358354625,1744981832329,-300.0,0.00020873,2]
[358354626,1744981832338,-503.57762141,0.00020873,2]
[358354627,1744981832347,-500.0,0.00020873,2]
[358354628,1744981832367,-500.0,0.00020873,2]
[358354629,1744981832378,-500.0,0.00020873,2]
[358354630,1744981832387,-161.90629473,0.00020873,2]
[358354631,1744981832397,-500.0,0.00020873,2]
[358354632,1744981832407,-180.63757156,0.0002089,2]
[358354633,1744981832417,-300.0,0.00020898,2]
[358354634,1744981832426,-500.0,0.00020899,2]
[358354635,1744981832436,-145661.90043597,0.00020899,2]
[358354636,1744981832455,-8286.7489693,0.00020899,2]
[358354637,1744981832468,-41305.01745795,0.00020899,2]
[358354652,1744981838474,-231.32691081,0.00019989,2]
[358354653,1744981838485,-462.87308919,0.00019989,2]
[358354949,1744981843389,-37.12691081,0.00019989,2]
[358354951,1744981843398,-500.0,0.00019989,2]
[358354953,1744981843408,-179.77941715,0.00019989,2]
[358354955,1744981843418,-500.0,0.00019989,2]
[358354957,1744981843428,-500.0,0.00019989,2]
[358354960,1744981843446,-500.0,0.00019989,2]
[358354963,1744981843462,-500.0,0.00019989,2]
[358354966,1744981843479,-500.0,0.00019989,2]
[358354968,1744981843493,-500.0,0.00019989,2]
[358354971,1744981843505,-550.0,0.00019989,2]
[358354973,1744981843519,-34953.98040457,0.00020899,2]
[358355792,1744982147955,181.16,0.0001801,2]
[358355793,1744982708100,10038.04605644,0.0001801,2]
[358355845,1744983032722,-553.83063043,0.0001988,2]
[358355846,1744983032843,-475.9,0.0001988,2]
[358355847,1744983032854,-426.18,0.0001988,2]
[358355854,1744983038571,-451.26089338,0.0001988,2]
[358355855,1744983038581,-241.2125566,0.000199,2]
[358355856,1744983038590,-2634.0460368,0.000199,2]
[358355857,1744983038600,-151.0,0.00019973,2]
[358355858,1744983038609,-300.0,0.00019977,2]
[358355859,1744983038619,-300.0,0.00019977,2]
[358355860,1744983038627,-300.0,0.00019977,2]
[358355861,1744983038636,-161.92883756,0.00019977,2]
[358355862,1744983038646,-500.0,0.00019977,2]
[358355863,1744983038655,-500.0,0.00019977,2]
[358355864,1744983038664,-500.0,0.00019977,2]
[358355865,1744983038673,-500.0,0.00019977,2]
[358355866,1744983038682,-500.0,0.00019977,2]
[358355867,1744983038692,-500.0,0.00019977,2]
[358355868,1744983038701,-500.0,0.00019977,2]
[358355869,1744983038711,-500.0,0.00019977,2]
[358355870,1744983038720,-500.0,0.00019977,2]
[358355871,1744983038730,-500.0,0.00019977,2]
[358355872,1744983038738,-500.0,0.00019977,2]
[358355873,1744983038747,-500.0,0.00019977,2]
[358355874,1744983038764,-500.0,0.00019977,2]
[358355875,1744983038774,-500.0,0.00019977,2]
[358355876,1744983038783,-500.0,0.00019977,2]
[358355877,1744983038793,-500.0,0.00019977,2]
[358355878,1744983038802,-500.0,0.00019977,2]
[358355879,1744983038812,-500.0,0.00019977,2]
[358355880,1744983038822,-500.0,0.00019977,2]
[358355881,1744983038832,-500.0,0.00019977,2]
[358355882,1744983038842,-500.0,0.00019977,2]
[358355883,1744983038851,-310.28157336,0.00019977,2]
[358355884,1744983038864,-189.71842664,0.00019977,2]
[358355885,1744983038873,-500.0,0.00019977,2]
[358355886,1744983038882,-500.0,0.00019977,2]
[358355887,1744983038891,-500.0,0.00019977,2]
[358355888,1744983038901,-500.0,0.00019977,2]
[358355889,1744983038910,-500.0,0.00019977,2]
[358355890,1744983038920,-500.0,0.00019977,2]
[358355891,1744983038929,-500.0,0.00019977,2]
[358355892,1744983038939,-500.0,0.00019977,2]
[358355893,1744983038949,-500.0,0.00019977,2]
[358355894,1744983038958,-500.0,0.00019977,2]
[358355895,1744983038968,-500.0,0.00019977,2]
[358355896,1744983038978,-500.0,0.00019977,2]
[358355897,1744983038987,-500.0,0.00019977,2]
[358355898,1744983038997,-502.60571088,0.00019977,2]
[358355899,1744983039007,-500.0,0.00019977,2]
[358355900,1744983039016,-500.0,0.00019977,2]
[358355901,1744983039026,-500.0,0.00019977,2]
[358355902,1744983039035,-500.0,0.00019977,2]
[358355903,1744983039044,-500.0,0.00019977,2]
[358355904,1744983039054,-500.0,0.00019977,2]
[358355905,1744983039063,-500.0,0.00019977,2]
[358355906,1744983039074,-500.0,0.00019977,2]
[358355907,1744983039084,-500.0,0.00019977,2]
[358355908,1744983039095,-500.0,0.00019977,2]
[358355909,1744983039106,-500.0,0.00019977,2]
[358355910,1744983039118,-500.0,0.00019977,2]
[358355911,1744983039128,-500.0,0.00019977,2]
[358355912,1744983039139,-500.0,0.00019977,2]
[358355913,1744983039151,-500.0,0.00019977,2]
[358355914,1744983039161,-500.0,0.00019977,2]
[358355915,1744983039171,-500.0,0.00019977,2]
[358355916,1744983039180,-500.0,0.00019977,2]
[358355917,1744983039190,-500.0,0.00019977,2]
[358355918,1744983039201,-500.0,0.00019977,2]
[358355919,1744983039211,-180.15989504,0.00019977,2]
[358355920,1744983039221,-500.0,0.00019977,2]
[358355921,1744983039232,-500.0,0.00019977,2]
[358355922,1744983039241,-500.0,0.00019977,2]
[358355923,1744983039251,-500.0,0.00019977,2]
[358355924,1744983039261,-500.0,0.00019977,2]
[358355925,1744983039271,-500.0,0.00019977,2]
[358355926,1744983039282,-500.0,0.00019977,2]
[358355927,1744983039290,-500.0,0.00019977,2]
[358355928,1744983039296,-500.0,0.00019977,2]
[358355929,1744983039306,-500.0,0.00019977,2]
[358355930,1744983039315,-500.0,0.00019977,2]
[358355931,1744983039325,-500.0,0.00019977,2]
[358355932,1744983039335,-500.0,0.00019977,2]
[358355933,1744983039344,-500.0,0.00019977,2]
[358355934,1744983039354,-500.0,0.00019977,2]
[358355935,1744983039363,-476.26010121,0.00019977,2]
[358355936,1744983039373,-500.0,0.00019977,2]
[358355937,1744983039382,-500.0,0.00019977,2]
[358355938,1744983039392,-500.0,0.00019977,2]
[358355939,1744983039401,-500.0,0.00019977,2]
[358355940,1744983039410,-500.0,0.00019977,2]
[358355941,1744983039420,-500.0,0.00019977,2]
[358355942,1744983039430,-500.0,0.00019977,2]
[358355943,1744983039440,-500.0,0.00019977,2]
[358355944,1744983039449,-500.0,0.00019977,2]
[358355945,1744983039459,-500.0,0.00019977,2]
[358355946,1744983039469,-500.0,0.00019977,2]
[358355947,1744983039478,-500.0,0.00019977,2]
[358355948,1744983039488,-500.0,0.00019977,2]
[358355949,1744983039498,-500.0,0.00019977,2]
[358355950,1744983039507,-500.0,0.00019977,2]
[358355951,1744983039517,-20034.03198871,0.00019978,2]
[358355952,1744983039552,-1477.40258563,0.00019978,2]
[358355969,1744983043495,-40972.25172816,0.00019978,2]
[358356007,1744984022567,161.6392671,0.00017932,2]
[358356039,1744984236620,-224.35416781,0.0001883,2]
[358356040,1744984236630,-160.0,0.00018922,2]
[358356041,1744984236642,-300.0,0.00018929,2]
[358356042,1744984236652,-300.0,0.00018929,2]
[358356043,1744984236662,-191.72352887,0.00018929,2]
[358356044,1744984236672,-500.0,0.00018929,2]
[358356045,1744984236682,-500.0,0.00018929,2]
[358356046,1744984236691,-500.0,0.00018929,2]
[358356047,1744984236700,-500.0,0.00018929,2]
[358356048,1744984236710,-500.0,0.00018929,2]
[358356049,1744984236720,-500.0,0.00018929,2]
[358356050,1744984236732,-500.0,0.00018929,2]
[358356051,1744984236742,-500.0,0.00018929,2]
[358356052,1744984236754,-467.07721504,0.00018929,2]
[358356053,1744984236765,-500.0,0.00018929,2]
[358356054,1744984236776,-500.0,0.00018929,2]
[358356055,1744984236786,-500.0,0.00018929,2]
[358356056,1744984236795,-500.0,0.00018929,2]
[358356057,1744984236805,-602.69807513,0.00018929,2]
[358356058,1744984236814,-500.0,0.00018929,2]
[358356059,1744984236824,-292.5265774,0.00018929,2]
[358356060,1744984236834,-500.0,0.00018929,2]
[358356061,1744984236843,-500.0,0.00018929,2]
[358356062,1744984236853,-500.0,0.00018929,2]
[358356063,1744984236862,-500.0,0.00018929,2]
[358356064,1744984236871,-500.0,0.00018929,2]
[358356065,1744984236881,-500.0,0.00018929,2]
[358356066,1744984236890,-500.0,0.00018929,2]
[358356067,1744984236900,-500.0,0.00018929,2]
[358356068,1744984236909,-500.0,0.00018929,2]
[358356069,1744984236919,-500.0,0.00018929,2]
[358356070,1744984236929,-500.0,0.00018929,2]
[358356071,1744984236938,-500.0,0.00018929,2]
[358356072,1744984236948,-242.23238055,0.0001893,2]
[358356073,1744984236957,-11128.15781083,0.0001893,2]
[358356074,1744984236969,-1419.49748092,0.0001893,2]
[358356075,1744984236985,-500.0,0.00018929,2]
[358356076,1744984236994,-3546.63890435,0.0001893,2]
[358356077,1744984237006,-253.29931102,0.0001893,2]
[358356078,1744984237015,-500.0,0.0001893,2]
[358356079,1744984237025,-300.0,0.00018931,2]
[358356080,1744984237034,-14830.56472841,0.00018934,2]
[358356095,1744984238712,-500.0,0.00018929,2]
[358356096,1744984238722,-10069.43527159,0.00018934,2]
[358356097,1744984238732,-16060.38126426,0.00018978,2]
[358356098,1744984238742,-6472.28822316,0.00018978,3]
[358356099,1744984238753,-213.397717,0.00018978,2]
[358356100,1744984238762,-26281.72214101,0.00019,2]
[358356101,1744984238772,-157.407716,0.00019,2]
[358356102,1744984238781,-228.113375,0.00019,2]
[358356103,1744984238791,-194.7355037,0.0001913,2]
[358356104,1744984238801,-500.82613835,0.000192,2]
[358356105,1744984238810,-500.0,0.000192,2]
[358356106,1744984238820,-500.0,0.0001925,2]
[358356107,1744984238829,-520.61555392,0.0001925,2]
[358356108,1744984238839,-2569.36691055,0.000193,2]
[358356109,1744984238849,-500.0,0.00019333,2]
[358356110,1744984238859,-500.0,0.00019333,2]
[358356111,1744984238869,-500.0,0.00019333,2]
[358356112,1744984238879,-500.0,0.00019333,2]
[358356113,1744984238888,-500.0,0.00019333,2]
[358356114,1744984238898,-500.0,0.00019333,2]
[358356115,1744984238908,-300.0,0.00019333,2]
[358356116,1744984238918,-500.0,0.00019333,2]
[358356117,1744984238929,-500.0,0.00019333,2]
[358356118,1744984238939,-500.0,0.00019333,2]
[358356119,1744984238948,-571.73651187,0.00019333,2]
[358356120,1744984238957,-640.79513832,0.00019376,2]
[358356121,1744984238967,-151.0,0.000194,2]
[358356122,1744984238977,-151.0,0.000194,2]
[358356123,1744984238986,-151.0,0.000194,2]
[358356124,1744984238996,-155.018348,0.000194,2]
[358356125,1744984239006,-500.0,0.00019452,2]
[358356126,1744984239015,-500.0,0.000195,2]
[358356127,1744984239025,-502.58819591,0.000195,2]
[358356128,1744984239035,-500.0,0.000195,2]
[358356129,1744984239044,-501.27052079,0.000195,2]
[358356130,1744984239053,-224.35416779,0.00019521,2]
[358356131,1744984239061,-1000.0,0.00019781,2]
[358356132,1744984239070,-1381.354839,0.00019781,2]
[358356133,1744984239078,-2569.36691033,0.00019831,2]
[358356134,1744984239087,-151.0,0.00019961,2]
[358356135,1744984239096,-300.71460877,0.00019962,2]
[358356136,1744984239105,-2703.90292499,0.00019978,2]
[358356137,1744984239113,-152.349804,0.0001998,2]
[358356138,1744984239123,-29400.21532924,0.0002,14]
[358356139,1744984239133,-152.078737,0.0002,2]
[358356140,1744984239142,-151.0,0.0002,2]
[358356141,1744984239152,-4381.15646227,0.0002,2]
[358356142,1744984239161,-158.268948,0.0002,2]
[358356143,1744984239171,-158.268948,0.0002,2]
[358356144,1744984239180,-163.903373,0.0002,2]
[358356145,1744984239190,-500.06510498,0.0002,2]
[358356146,1744984239199,-501.3316551,0.0002,2]
[358356147,1744984239209,-151.0,0.0002,2]
[358356148,1744984239218,-503.41797934,0.0002,2]
[358356149,1744984239228,-151.0,0.0002,2]
[358356150,1744984239238,-165.714423,0.0002,2]
[358356151,1744984239247,-151.0,0.0002,2]
[358356152,1744984239257,-165.714423,0.0002,2]
[358356153,1744984239267,-151.0,0.0002,2]
[358356154,1744984239277,-406.790564,0.0002,2]
[358356155,1744984239287,-151.0,0.0002,2]
[358356156,1744984239296,-406.790564,0.0002,2]
[358356157,1744984239306,-151.0,0.0002,2]
[358356158,1744984239316,-151.000001,0.0002,2]
[358356159,1744984239326,-151.0,0.0002,2]
[358356160,1744984239335,-156.890695,0.0002,2]
[358356161,1744984239345,-151.0,0.0002,2]
[358356162,1744984239355,-151.0,0.0002,2]
[358356163,1744984239364,-151.0,0.0002,2]
[358356164,1744984239374,-151.0,0.0002,2]
[358356165,1744984239384,-675.550631,0.0002,2]
[358356166,1744984239394,-675.550631,0.0002,2]
[358356167,1744984239404,-151.0,0.0002,2]
[358356168,1744984239414,-170.289731,0.0002,2]
[358356169,1744984239423,-187.180951,0.0002,2]
[358356170,1744984239433,-187.180951,0.0002,2]
[358356171,1744984239443,-478.507543,0.0002,2]
[358356172,1744984239454,-478.507543,0.0002,2]
[358356173,1744984239463,-587.392008,0.0002,2]
[358356174,1744984239473,-604.28907,0.0002,2]
[358356175,1744984239483,-604.28907,0.0002,2]
[358356176,1744984239493,-151.0,0.0002,2]
[358356177,1744984239502,-151.0,0.0002,2]
[358356178,1744984239512,-151.0,0.0002,2]
[358356179,1744984239521,-151.0,0.0002,2]
[358356180,1744984239532,-151.0,0.0002,2]
[358356181,1744984239542,-151.0,0.0002,2]
[358356182,1744984239551,-300.75048462,0.0002,2]
[358356183,1744984239561,-151.0,0.0002,2]
[358356184,1744984239574,-151.0,0.0002,2]
[358356185,1744984239584,-151.0,0.0002,2]
[358356186,1744984239594,-151.0,0.0002,2]
[358356187,1744984239605,-151.0,0.0002,2]
[358356188,1744984239615,-151.0,0.0002,2]
[358356189,1744984239625,-164.614547,0.0002,2]
[358356190,1744984239635,-166.112802,0.0002,2]
[358356191,1744984239645,-151.0,0.0002,2]
[358356192,1744984239655,-151.0,0.0002,2]
[358356193,1744984239665,-151.0,0.0002,2]
[358356194,1744984239674,-151.0,0.0002,2]
[358356195,1744984239683,-151.0,0.0002,2]
[358356196,1744984239693,-151.0,0.0002,2]
[358356197,1744984239706,-151.0,0.0002,2]
[358356198,1744984239716,-151.0,0.0002,2]
[358356199,1744984239728,-151.0,0.0002,2]
[358356200,1744984239739,-151.0,0.0002,2]
[358356201,1744984239751,-156.587,0.00020016,2]
[358356202,1744984239760,-4755.8,0.00020043,2]
[358356203,1744984239772,-159.435122,0.00020063,2]
[358356204,1744984239782,-162.380719,0.00020071,2]
[358356205,1744984239793,-168.3888056,0.00020126,2]
[358356206,1744984239803,-151.0,0.00020137,2]
[358356207,1744984239812,-151.0,0.00020137,2]
[358356208,1744984239822,-151.0,0.00020137,2]
[358356209,1744984239832,-151.0,0.00020137,2]
[358356210,1744984239842,-151.0,0.00020137,2]
[358356211,1744984239851,-151.0,0.00020137,2]
[358356212,1744984239861,-151.0,0.00020137,2]
[358356213,1744984239871,-151.0,0.00020137,2]
[358356214,1744984239880,-151.0,0.00020137,2]
[358356215,1744984239890,-151.0,0.00020137,2]
[358356216,1744984239900,-174.61919141,0.00020181,2]
[358356217,1744984239910,-600.0,0.000202,2]
[358356218,1744984239919,-224.35416779,0.00020212,2]
[358356219,1744984239928,-181.08010149,0.00020236,2]
[358356220,1744984239938,-151.0,0.00020274,2]
[358356222,1744984240128,-199.27177688,0.00020274,2]
[358356223,1744984240138,-198.0,0.00020274,2]
[358356224,1744984240148,-151.0,0.00020274,2]
[358356225,1744984240157,-151.0,0.00020274,2]
[358356226,1744984240168,-198.0,0.00020274,2]
[358356227,1744984240178,-151.0,0.00020274,2]
[358356228,1744984240190,-198.0,0.00020274,2]
[358356229,1744984240200,-200.83960874,0.00020274,2]
[358356230,1744984240211,-187.78006525,0.00020291,2]
[358356231,1744984240219,-194.72792766,0.00020346,2]
[358356232,1744984240229,-232.70883292,0.00020401,2]
[358356233,1744984240240,-170.18383974,0.00020411,2]
[358356235,1744984240250,-245.0,0.00020411,2]
[358356236,1744984240259,-194.31975295,0.00020411,2]
[358356237,1744984240269,-245.0,0.00020411,2]
[358356238,1744984240279,-1000.0,0.00020548,2]
[358356239,1744984240289,-420.0,0.00020635,2]
[358356240,1744984240299,-420.0,0.00020635,2]
[358356241,1744984240308,-420.0,0.00020736,2]
[358356242,1744984240318,-2569.36691033,0.00020762,2]
[358356243,1744984240327,-152.942752,0.00020831,2]
[358356244,1744984240336,-151.0,0.00020831,2]
[358356245,1744984240346,-587.392008,0.00020831,2]
[358356246,1744984240356,-604.28907,0.00020831,2]
[358356247,1744984240365,-604.28907,0.00020831,2]
[358356248,1744984240375,-151.0,0.00020831,2]
[358356249,1744984240384,-151.0,0.00020831,2]
[358356250,1744984240394,-164.419776,0.00020831,2]
[358356251,1744984240404,-151.0,0.00020831,2]
[358356252,1744984240414,-151.0,0.00020845,2]
[358356253,1744984240423,-195.802644,0.00020845,2]
[358356254,1744984240433,-201.01350009,0.00020845,2]
[358356255,1744984240443,-675.550631,0.00020845,2]
[358356256,1744984240453,-675.550631,0.00020845,2]
[358356257,1744984240463,-187.180951,0.00020845,2]
[358356258,1744984240473,-187.180951,0.00020845,2]
[358356259,1744984240482,-478.507543,0.00020845,2]
[358356260,1744984240492,-478.507543,0.00020845,2]
[358356262,1744984240501,-266.27,0.000209,2]
[358356264,1744984240512,-224.35416779,0.00020902,2]
[358356266,1744984240522,-600.0,0.00020977,2]
[358356268,1744984240531,-402.0,0.00021154,2]
[358356270,1744984240539,-700.0,0.000212,3]
[358356272,1744984240548,-151.0,0.000212,2]
[358356274,1744984240557,-151.0,0.000212,2]
[358356276,1744984240568,-151.0,0.000212,2]
[358356278,1744984240577,-151.0,0.000212,2]
[358356280,1744984240586,-151.0,0.000212,3]
[358356282,1744984240595,-133647.26221,0.00021272,2]
[358356284,1744984240605,-151.0,0.00021273,2]
[358356286,1744984240617,-151.0,0.00021273,2]
[358356288,1744984240626,-158.268948,0.00021273,2]
[358356290,1744984240636,-158.268948,0.00021273,2]
[358356291,1744984240647,-281.441121,0.00021273,2]
[358356292,1744984240657,-151.0,0.00021273,2]
[358356294,1744984240665,-250.692972,0.00021273,2]
[358356295,1744984240675,-151.0,0.00021273,2]
[358356297,1744984240684,-174.769506,0.00021273,2]
[358356298,1744984240694,-180.178368,0.00021273,2]
[358356299,1744984240703,-180.178368,0.00021273,2]
[358356300,1744984240712,-151.0,0.00021273,2]
[358356301,1744984240722,-220.177122,0.00021273,2]
[358356303,1744984240732,-151.0,0.00021273,2]
[358356304,1744984240741,-151.0,0.00021273,2]
[358356305,1744984240751,-406.457804,0.00021273,2]
[358356306,1744984240760,-406.457804,0.00021273,2]
[358356307,1744984240770,-151.0,0.00021273,2]
[358356308,1744984240780,-151.0,0.00021273,2]
[358356309,1744984240790,-165.714423,0.00021273,2]
[358356310,1744984240801,-165.714423,0.00021273,2]
[358356311,1744984240810,-406.790564,0.00021273,2]
[358356312,1744984240819,-151.0,0.00021273,2]
[358356313,1744984240829,-406.790564,0.00021273,2]
[358356314,1744984240839,-151.0,0.00021273,2]
[358356315,1744984240849,-151.0,0.00021273,2]
[358356317,1744984240858,-151.0,0.00021273,2]
[358356318,1744984240867,-151.0,0.00021273,2]
[358356319,1744984240876,-297.181337,0.00021273,2]